fUST/lending_fUST_20250211
["ID","MTS","AMOUNT","RATE_DAILY","PERIOD"]
[352650004,1739217062983,-500.0,0.00012465,2]
[352650006,1739217062992,-860.92,0.00012465,2]
[352650008,1739217063002,-1323.61,0.00012465,2]
[352650010,1739217063011,-11584.87,0.00012465,2]
[352650012,1739217063021,-4800.77,0.00012465,2]
[352650014,1739217063032,-500.0,0.00012465,2]
[352650016,1739217063043,-585.45,0.00012465,2]
[352650018,1739217063053,-500.0,0.00012465,2]
[352650020,1739217063063,-916.7,0.00012465,2]
[352650022,1739217063072,-29101.39,0.00012465,2]
[352650024,1739217063083,-1273.32,0.00012465,2]
[352650025,1739217063092,-193.418912,0.00012465,2]
[352650027,1739217063102,-442.18841218,0.00012465,2]
[352650030,1739217063112,-1025.97,0.00012465,2]
[352650032,1739217063123,-659.0357,0.00012465,2]
[352650034,1739217063133,-164.966345,0.00012465,2]
[352650036,1739217063143,-659.0357,0.00012465,2]
[352650038,1739217063153,-1916.6,0.00012465,2]
[352650040,1739217063163,-164.966345,0.00012465,2]
[352650042,1739217063173,-1515.05,0.00012465,2]
[352650044,1739217063184,-500.0,0.00012465,2]
[352650046,1739217063193,-480.24814645,0.00012465,2]
[352650048,1739217063202,-500.0,0.00012465,2]
[352650050,1739217063213,-151.0,0.00012465,2]
[352650052,1739217063223,-500.0,0.00012465,2]
[352650054,1739217063234,-1019.81,0.00012465,2]
[352650055,1739217063244,-151.0,0.00012465,2]
[352650057,1739217063254,-500.0,0.00012465,2]
[352650059,1739217063265,-501.45,0.00012465,2]
[352650061,1739217063275,-500.0,0.00012465,2]
[352650063,1739217063286,-500.0,0.00012465,2]
[352650065,1739217063296,-14265.64,0.00012465,2]
[352650067,1739217063307,-500.0,0.00012465,2]
[352650069,1739217063317,-501.51,0.00012465,2]
[352650071,1739217063327,-152.13953653,0.00012465,2]
[352650073,1739217063337,-500.0,0.00012465,2]
[352650075,1739217063347,-500.0,0.00012465,2]
[352650077,1739217063357,-621.7,0.00012465,2]
[352650079,1739217063366,-500.0,0.00012465,2]
[352650081,1739217063376,-3666.21,0.00012465,2]
[352650083,1739217063386,-1588.62,0.00012465,2]
[352650086,1739217063396,-500.0,0.00012465,2]
[352650088,1739217063406,-778.17,0.00012465,2]
[352650090,1739217063416,-1513.57,0.00012465,2]
[352650092,1739217063426,-537.86,0.00012465,2]
[352650094,1739217063436,-3318.52,0.00012465,2]
[352650096,1739217063445,-8633.74,0.00012465,2]
[352650098,1739217063457,-1563.78,0.00012465,2]
[352650100,1739217063467,-540.59,0.00012465,2]
[352650102,1739217063477,-663.02,0.00012465,2]
[352650104,1739217063487,-1721.85,0.00012465,2]
[352650106,1739217063499,-220.091735,0.00012465,2]
[352650108,1739217063510,-500.0,0.00012465,2]
[352650110,1739217063519,-1093.42,0.00012465,2]
[352650111,1739217063530,-220.091735,0.00012465,2]
[352650113,1739217063541,-500.0,0.00012465,2]
[352650115,1739217063554,-732.73,0.00012465,2]
[352650117,1739217063564,-517.15,0.00012465,2]
[352650119,1739217063575,-500.0,0.00012465,2]
[352650121,1739217063586,-1107.21,0.00012465,2]
[352650123,1739217063597,-3083.07,0.00012465,2]
[352650125,1739217063607,-500.0,0.00012465,2]
[352650127,1739217063617,-871.6269383,0.00012592,2]
[352650129,1739217063628,-1500.0,0.00012592,2]
[352650131,1739217063639,-500.0,0.00012602,2]
[352650133,1739217063649,-500.0,0.00012602,2]
[352650135,1739217063659,-151.0,0.00012602,2]
[352650137,1739217063668,-151.0,0.00012602,2]
[352650139,1739217063678,-735.03,0.00012602,2]
[352650140,1739217063687,-622.75,0.00012602,2]
[352650141,1739217063697,-500.0,0.00012602,2]
[352650142,1739217063709,-500.0,0.00012602,2]
[352650143,1739217063719,-500.0,0.00012602,2]
[352650144,1739217063729,-399.696085,0.00012602,2]
[352650145,1739217063739,-399.696085,0.00012602,2]
[352650146,1739217063748,-500.0,0.00012602,2]
[352650147,1739217063758,-151.0,0.00012602,2]
[352650148,1739217063768,-249.333808,0.00012602,2]
[352650149,1739217063779,-654.8,0.00012602,2]
[352650150,1739217063789,-322.35587736,0.00012602,2]
[352650151,1739217063800,-661.79,0.00012602,2]
[352650153,1739217063811,-227.9909,0.00012602,2]
[352650155,1739217063821,-500.0,0.00012602,2]
[352650156,1739217063830,-500.0,0.00012602,2]
[352650158,1739217063841,-227.9909,0.00012602,2]
[352650160,1739217063850,-872.2,0.00012602,2]
[352650162,1739217063861,-500.0,0.00012602,2]
[352650164,1739217063871,-564.08,0.00012602,2]
[352650166,1739217063881,-500.0,0.00012602,2]
[352650168,1739217063891,-500.0,0.00012602,2]
[352650170,1739217063901,-500.0,0.00012602,2]
[352650172,1739217063911,-151.0,0.00012602,2]
[352650174,1739217063922,-746.7,0.00012602,2]
[352650176,1739217063932,-151.0,0.00012602,2]
[352650178,1739217063942,-151.0,0.00012602,2]
[352650180,1739217063953,-500.0,0.00012602,2]
[352650182,1739217063964,-500.0,0.00012602,2]
[352650184,1739217063974,-522.33,0.00012602,2]
[352650186,1739217063984,-267.01913547,0.00012602,2]
[352650188,1739217063994,-697.04,0.00012602,2]
[352650190,1739217064003,-503.826543,0.00012602,2]
[352650192,1739217064015,-503.826543,0.00012602,2]
[352650194,1739217064026,-1338.64,0.00012602,2]
[352650196,1739217064036,-1444.41,0.00012602,2]
[352650198,1739217064046,-993.38,0.00012602,2]
[352650200,1739217064056,-500.0,0.00012602,2]
[352650202,1739217064065,-1923.93,0.00012602,2]
[352650204,1739217064074,-816.51,0.00012602,2]
[352650206,1739217064084,-530.02922916,0.00012602,2]
[352650208,1739217064094,-2855.64,0.00012602,2]
[352650210,1739217064104,-852.74,0.00012602,2]
[352650212,1739217064114,-2016.55,0.00012602,2]
[352650214,1739217064123,-3619.33,0.00012602,2]
[352650216,1739217064133,-3892.95,0.00012602,2]
[352650219,1739217064144,-500.0,0.00012602,2]
[352650221,1739217064154,-1133.68,0.00012602,2]
[352650223,1739217064164,-2543.96,0.00012602,2]
[352650225,1739217064174,-1052.65,0.00012602,2]
[352650227,1739217064183,-500.0,0.00012602,2]
[352650229,1739217064193,-512.12,0.00012602,2]
[352650231,1739217064203,-1803.17,0.00012602,2]
[352650232,1739217064212,-500.0,0.00012602,2]
[352650234,1739217064222,-860.92,0.00012602,2]
[352650236,1739217064231,-1323.61,0.00012602,2]
[352650239,1739217064242,-11584.87,0.00012602,2]
[352650241,1739217064252,-4800.77,0.00012602,2]
[352650243,1739217064262,-500.0,0.00012602,2]
[352650245,1739217064273,-585.45,0.00012602,2]
[352650247,1739217064282,-500.0,0.00012602,2]
[352650249,1739217064293,-916.7,0.00012602,2]
[352650251,1739217064303,-29101.39,0.00012602,2]
[352650253,1739217064312,-1273.32,0.00012602,2]
[352650255,1739217064321,-1025.97,0.00012602,2]
[352650257,1739217064330,-1916.6,0.00012602,2]
[352650259,1739217064340,-1515.05,0.00012602,2]
[352650261,1739217064350,-500.0,0.00012602,2]
[352650263,1739217064360,-500.0,0.00012602,2]
[352650265,1739217064370,-500.0,0.00012602,2]
[352650267,1739217064380,-1019.81,0.00012602,2]
[352650269,1739217064389,-500.0,0.00012602,2]
[352650271,1739217064398,-501.45,0.00012602,2]
[352650273,1739217064408,-500.0,0.00012602,2]
[352650274,1739217064419,-500.0,0.00012602,2]
[352650277,1739217064428,-14265.64,0.00012602,2]
[352650278,1739217064438,-500.0,0.00012602,2]
[352650280,1739217064448,-501.51,0.00012602,2]
[352650283,1739217064458,-500.0,0.00012602,2]
[352650285,1739217064468,-621.7,0.00012602,2]
[352650287,1739217064478,-500.0,0.00012602,2]
[352650289,1739217064487,-3666.21,0.00012602,2]
[352650290,1739217064497,-1588.62,0.00012602,2]
[352650292,1739217064507,-446.8,0.00012602,2]
[352650294,1739217064518,-778.17,0.00012602,2]
[352650296,1739217064528,-1513.57,0.00012602,2]
[352650298,1739217064539,-537.86,0.00012602,2]
[352650300,1739217064550,-3318.52,0.00012602,2]
[352650302,1739217064560,-8633.74,0.00012602,2]
[352650304,1739217064570,-1563.78,0.00012602,2]
[352650306,1739217064580,-540.59,0.00012602,2]
[352650309,1739217064591,-663.02,0.00012602,2]
[352650311,1739217064601,-1721.85,0.00012602,2]
[352650313,1739217064612,-500.0,0.00012602,2]
[352650315,1739217064622,-1093.42,0.00012602,2]
[352650317,1739217064634,-548.51,0.00012602,2]
[352650319,1739217064644,-732.73,0.00012602,2]
[352650321,1739217064654,-517.15,0.00012602,2]
[352650323,1739217064663,-500.0,0.00012602,2]
[352650325,1739217064672,-1107.21,0.00012602,2]
[352650327,1739217064682,-3083.07,0.00012602,2]
[352650329,1739217064691,-500.0,0.00012602,2]
[352650330,1739217064700,-322.14791884,0.00012613,2]
[352650332,1739217064709,-151.0,0.00012679,2]
[352650334,1739217064719,-500.0,0.00012727,2]
[352650335,1739217064728,-151.0,0.00012739,2]
[352650342,1739217064840,-151.0,0.00012739,2]
[352650343,1739217064851,-500.0,0.00012739,2]
[352650345,1739217064860,-500.0,0.00012739,2]
[352650347,1739217064870,-151.0,0.00012739,2]
[352650348,1739217064879,-735.03,0.00012739,2]
[352650350,1739217064889,-500.0,0.00012739,2]
[352650351,1739217064898,-500.0,0.00012739,2]
[352650353,1739217064907,-308.194264,0.00012739,2]
[352650355,1739217064918,-308.194264,0.00012739,2]
[352650356,1739217064928,-500.0,0.00012739,2]
[352650358,1739217064937,-500.0,0.00012739,2]
[352650359,1739217064948,-654.8,0.00012739,2]
[352650361,1739217064958,-661.79,0.00012739,2]
[352650362,1739217064968,-500.0,0.00012739,2]
[352650364,1739217064977,-500.0,0.00012739,2]
[352650366,1739217064987,-872.2,0.00012739,2]
[352650367,1739217064997,-500.0,0.00012739,2]
[352650369,1739217065006,-564.08,0.00012739,2]
[352650371,1739217065018,-500.0,0.00012739,2]
[352650372,1739217065028,-500.0,0.00012739,2]
[352650374,1739217065037,-746.7,0.00012739,2]
[352650375,1739217065047,-500.0,0.00012739,2]
[352650377,1739217065056,-500.0,0.00012739,2]
[352650379,1739217065065,-522.33,0.00012739,2]
[352650380,1739217065075,-697.04,0.00012739,2]
[352650382,1739217065086,-1338.64,0.00012739,2]
[352650384,1739217065096,-1444.41,0.00012739,2]
[352650385,1739217065106,-993.38,0.00012739,2]
[352650387,1739217065116,-1923.93,0.00012739,2]
[352650389,1739217065126,-816.51,0.00012739,2]
[352650390,1739217065136,-2855.64,0.00012739,2]
[352650392,1739217065146,-852.74,0.00012739,2]
[352650393,1739217065156,-2016.55,0.00012739,2]
[352650395,1739217065166,-3619.33,0.00012739,2]
[352650397,1739217065175,-3892.95,0.00012739,2]
[352650398,1739217065184,-500.0,0.00012739,2]
[352650400,1739217065194,-1133.68,0.00012739,2]
[352650402,1739217065204,-2543.96,0.00012739,2]
[352650403,1739217065214,-1052.65,0.00012739,2]
[352650405,1739217065223,-500.0,0.00012739,2]
[352650406,1739217065233,-512.12,0.00012739,2]
[352650408,1739217065243,-1803.17,0.00012739,2]
[352650410,1739217065253,-500.0,0.00012739,2]
[352650411,1739217065263,-860.92,0.00012739,2]
[352650413,1739217065272,-1323.61,0.00012739,2]
[352650414,1739217065281,-11584.87,0.00012739,2]
[352650416,1739217065291,-4800.77,0.00012739,2]
[352650418,1739217065301,-500.0,0.00012739,2]
[352650419,1739217065311,-585.45,0.00012739,2]
[352650421,1739217065320,-500.0,0.00012739,2]
[352650423,1739217065330,-916.7,0.00012739,2]
[352650424,1739217065339,-29101.39,0.00012739,2]
[352650426,1739217065348,-1273.32,0.00012739,2]
[352650427,1739217065358,-1025.97,0.00012739,2]
[352650429,1739217065368,-1916.6,0.00012739,2]
[352650431,1739217065378,-1515.05,0.00012739,2]
[352650432,1739217065387,-500.0,0.00012739,2]
[352650434,1739217065396,-549.74003816,0.00012739,2]
[352650436,1739217065406,-151.0,0.00012739,2]
[352650437,1739217065416,-500.0,0.00012739,2]
[352650439,1739217065425,-151.0,0.00012739,2]
[352650441,1739217065435,-1019.81,0.00012739,2]
[352650442,1739217065444,-500.0,0.00012739,2]
[352650444,1739217065453,-501.45,0.00012739,2]
[352650445,1739217065464,-500.0,0.00012739,2]
[352650447,1739217065473,-500.0,0.00012739,2]
[352650449,1739217065483,-14265.64,0.00012739,2]
[352650450,1739217065493,-500.0,0.00012739,2]
[352650452,1739217065502,-501.51,0.00012739,2]
[352650453,1739217065512,-500.0,0.00012739,2]
[352650455,1739217065522,-621.7,0.00012739,2]
[352650457,1739217065532,-500.0,0.00012739,2]
[352650458,1739217065543,-3666.21,0.00012739,2]
[352650460,1739217065559,-1588.62,0.00012739,2]
[352650462,1739217065569,-778.17,0.00012739,2]
[352650463,1739217065579,-1513.57,0.00012739,2]
[352650465,1739217065589,-537.86,0.00012739,2]
[352650466,1739217065598,-3318.52,0.00012739,2]
[352650468,1739217065608,-8633.74,0.00012739,2]
[352650470,1739217065618,-1563.78,0.00012739,2]
[352650471,1739217065628,-540.59,0.00012739,2]
[352650473,1739217065638,-663.02,0.00012739,2]
[352650475,1739217065648,-1721.85,0.00012739,2]
[352650476,1739217065658,-220.091735,0.00012739,2]
[352650478,1739217065667,-500.0,0.00012739,2]
[352650480,1739217065676,-1093.42,0.00012739,2]
[352650481,1739217065686,-220.091735,0.00012739,2]
[352650483,1739217065696,-732.73,0.00012739,2]
[352650484,1739217065705,-517.15,0.00012739,2]
[352650486,1739217065716,-500.0,0.00012739,2]
[352650488,1739217065726,-1107.21,0.00012739,2]
[352650489,1739217065735,-3083.07,0.00012739,2]
[352650491,1739217065744,-1500.0,0.00012822,2]
[352650492,1739217065754,-1500.0,0.00012822,2]
[352650494,1739217065763,-2000.0,0.00012866,2]
[352650496,1739217065773,-151.0,0.00012876,2]
[352650497,1739217065782,-175.282618,0.00012876,2]
[352650499,1739217065792,-151.0,0.00012876,2]
[352650500,1739217065801,-151.0,0.00012876,2]
[352650502,1739217065811,-500.0,0.00012876,2]
[352650504,1739217065821,-298.665351,0.00012876,2]
[352650505,1739217065830,-500.0,0.00012876,2]
[352650507,1739217065839,-1795.214927,0.00012876,2]
[352650508,1739217065849,-1795.214927,0.00012876,2]
[352650510,1739217065859,-735.03,0.00012876,2]
[352650512,1739217065868,-500.0,0.00012876,2]
[352650513,1739217065878,-500.0,0.00012876,2]
[352650515,1739217065888,-500.0,0.00012876,2]
[352650517,1739217065899,-500.0,0.00012876,2]
[352650518,1739217065908,-654.8,0.00012876,2]
[352650520,1739217065919,-661.79,0.00012876,2]
[352650522,1739217065929,-500.0,0.00012876,2]
[352650523,1739217065940,-500.0,0.00012876,2]
[352650525,1739217065949,-872.2,0.00012876,2]
[352650527,1739217065959,-500.0,0.00012876,2]
[352650529,1739217065969,-564.08,0.00012876,2]
[352650531,1739217065979,-213.71377305,0.00012876,2]
[352650533,1739217065989,-500.0,0.00012876,2]
[352650535,1739217065999,-151.0,0.00012876,2]
[352650537,1739217066008,-746.7,0.00012876,2]
[352650539,1739217066019,-500.0,0.00012876,2]
[352650541,1739217066029,-629.72,0.00012876,2]
[352650543,1739217066039,-522.33,0.00012876,2]
[352650545,1739217066048,-697.04,0.00012876,2]
[352650546,1739217066059,-503.826543,0.00012876,2]
[352650547,1739217066069,-503.826543,0.00012876,2]
[352650548,1739217066079,-1338.64,0.00012876,2]
[352650549,1739217066089,-151.0,0.00012876,2]
[352650550,1739217066098,-222.563731,0.00012876,2]
[352650551,1739217066108,-1444.41,0.00012876,2]
[352650552,1739217066118,-228.06381,0.00012876,2]
[352650553,1739217066127,-228.06381,0.00012876,2]
[352650554,1739217066137,-993.38,0.00012876,2]
[352650555,1739217066146,-151.0,0.00012876,2]
[352650556,1739217066155,-151.0,0.00012876,2]
[352650557,1739217066165,-1923.93,0.00012876,2]
[352650558,1739217066174,-816.51,0.00012876,2]
[352650559,1739217066184,-2855.64,0.00012876,2]
[352650560,1739217066194,-852.74,0.00012876,2]
[352650561,1739217066205,-2016.55,0.00012876,2]
[352650562,1739217066215,-3619.33,0.00012876,2]
[352650563,1739217066224,-3892.95,0.00012876,2]
[352650564,1739217066234,-500.0,0.00012876,2]
[352650565,1739217066244,-151.0,0.00012876,2]
[352650566,1739217066255,-1133.68,0.00012876,2]
[352650567,1739217066266,-2543.96,0.00012876,2]
[352650568,1739217066276,-1052.65,0.00012876,2]
[352650570,1739217066286,-500.0,0.00012876,2]
[352650571,1739217066296,-512.12,0.00012876,2]
[352650572,1739217066306,-1803.17,0.00012876,2]
[352650574,1739217066316,-500.0,0.00012876,2]
[352650576,1739217066326,-500.0,0.00012876,3]
[352650578,1739217066335,-500.0,0.00012876,3]
[352650580,1739217066344,-500.0,0.00012876,3]
[352650582,1739217066354,-500.0,0.00012876,3]
[352650584,1739217066363,-500.0,0.00012876,3]
[352650586,1739217066372,-500.0,0.00012876,3]
[352650587,1739217066382,-500.0,0.00012876,3]
[352650589,1739217066391,-500.0,0.00012876,3]
[352650591,1739217066400,-500.0,0.00012876,3]
[352650593,1739217066410,-1323.61,0.00012876,2]
[352650595,1739217066419,-11584.87,0.00012876,2]
[352650597,1739217066429,-500.0,0.00012876,3]
[352650599,1739217066439,-860.92,0.00012876,2]
[352650601,1739217066448,-500.0,0.00012876,3]
[352650603,1739217066459,-500.0,0.00012876,3]
[352650605,1739217066469,-201.5,0.00012876,3]
[352650608,1739217066479,-4800.77,0.00012876,2]
[352650610,1739217066488,-500.0,0.00012876,2]
[352650612,1739217066498,-585.45,0.00012876,2]
[352650614,1739217066507,-500.0,0.00012876,2]
[352650616,1739217066518,-916.7,0.00012876,2]
[352650618,1739217066528,-29101.39,0.00012876,2]
[352650620,1739217066538,-1273.32,0.00012876,2]
[352650622,1739217066552,-1025.97,0.00012876,2]
[352650624,1739217066563,-659.0357,0.00012876,2]
[352650626,1739217066573,-164.966345,0.00012876,2]
[352650628,1739217066582,-659.0357,0.00012876,2]
[352650630,1739217066594,-1916.6,0.00012876,2]
[352650632,1739217066604,-164.966345,0.00012876,2]
[352650634,1739217066614,-1515.05,0.00012876,2]
[352650636,1739217066629,-500.0,0.00012876,2]
[352650638,1739217066639,-500.0,0.00012876,2]
[352650640,1739217066649,-1019.81,0.00012876,2]
[352650642,1739217066659,-500.0,0.00012876,2]
[352650644,1739217066668,-501.45,0.00012876,2]
[352650646,1739217066679,-500.0,0.00012876,2]
[352650648,1739217066688,-500.0,0.00012876,2]
[352650651,1739217066699,-14265.64,0.00012876,2]
[352650652,1739217066709,-500.0,0.00012876,2]
[352650655,1739217066719,-501.51,0.00012876,2]
[352650657,1739217066729,-500.0,0.00012876,2]
[352650659,1739217066740,-621.7,0.00012876,2]
[352650661,1739217066750,-584.62455967,0.00012876,2]
[352650663,1739217066759,-3666.21,0.00012876,2]
[352650673,1739217066769,-1588.62,0.00012876,2]
[352650675,1739217066863,-778.17,0.00012876,2]
[352650677,1739217066873,-1513.57,0.00012876,2]
[352650679,1739217066883,-537.86,0.00012876,2]
[352650681,1739217066893,-3318.52,0.00012876,2]
[352650683,1739217066903,-8633.74,0.00012876,2]
[352650685,1739217066914,-1563.78,0.00012876,2]
[352650687,1739217066925,-663.02,0.00012876,2]
[352650689,1739217066935,-540.59,0.00012876,2]
[352650691,1739217066945,-1721.85,0.00012876,2]
[352650693,1739217066955,-500.0,0.00012876,2]
[352650695,1739217066965,-1093.42,0.00012876,2]
[352650697,1739217066975,-732.73,0.00012876,2]
[352650699,1739217066986,-517.15,0.00012876,2]
[352650701,1739217066995,-1107.21,0.00012876,2]
[352650703,1739217067005,-500.0,0.00012876,2]
[352650705,1739217067016,-3083.07,0.00012876,2]
[352650707,1739217067025,-280.04062408,0.000129,2]
[352650709,1739217067035,-280.04062401,0.000129,2]
[352650711,1739217067045,-280.04062401,0.000129,2]
[352650713,1739217067055,-708.9544464,0.00013,2]
[352650715,1739217067064,-500.0,0.00013013,2]
[352650717,1739217067074,-500.0,0.00013013,2]
[352650719,1739217067084,-151.0,0.00013013,2]
[352650721,1739217067093,-151.0,0.00013013,2]
[352650723,1739217067103,-151.0,0.00013013,2]
[352650725,1739217067113,-735.03,0.00013013,2]
[352650727,1739217067123,-500.0,0.00013013,2]
[352650729,1739217067134,-500.0,0.00013013,2]
[352650731,1739217067144,-500.0,0.00013013,2]
[352650733,1739217067155,-399.696085,0.00013013,2]
[352650735,1739217067165,-399.696085,0.00013013,2]
[352650737,1739217067174,-500.0,0.00013013,2]
[352650739,1739217067185,-151.0,0.00013013,2]
[352650741,1739217067195,-654.8,0.00013013,2]
[352650743,1739217067205,-661.79,0.00013013,2]
[352650745,1739217067214,-227.9909,0.00013013,2]
[352650747,1739217067225,-517.4,0.00013013,2]
[352650749,1739217067235,-500.0,0.00013013,2]
[352650752,1739217067245,-227.9909,0.00013013,2]
[352650754,1739217067255,-872.2,0.00013013,2]
[352650756,1739217067265,-500.0,0.00013013,2]
[352650758,1739217067275,-564.08,0.00013013,2]
[352650760,1739217067284,-500.0,0.00013013,2]
[352650762,1739217067294,-746.7,0.00013013,2]
[352650763,1739217067303,-151.0,0.00013013,2]
[352650765,1739217067313,-500.0,0.00013013,2]
[352650768,1739217067323,-522.33,0.00013013,2]
[352650770,1739217067333,-697.04,0.00013013,2]
[352650772,1739217067343,-1338.64,0.00013013,2]
[352650774,1739217067352,-1444.41,0.00013013,2]
[352650776,1739217067362,-993.38,0.00013013,2]
[352650778,1739217067372,-1923.93,0.00013013,2]
[352650780,1739217067382,-816.51,0.00013013,2]
[352650782,1739217067392,-2855.64,0.00013013,2]
[352650784,1739217067403,-852.74,0.00013013,2]
[352650786,1739217067413,-2016.55,0.00013013,2]
[352650788,1739217067424,-3619.33,0.00013013,2]
[352650790,1739217067434,-3892.95,0.00013013,2]
[352650792,1739217067444,-500.0,0.00013013,2]
[352650794,1739217067454,-1133.68,0.00013013,2]
[352650796,1739217067464,-2543.96,0.00013013,2]
[352650798,1739217067474,-1052.65,0.00013013,2]
[352650800,1739217067483,-500.0,0.00013013,2]
[352650802,1739217067493,-512.12,0.00013013,2]
[352650804,1739217067503,-1803.17,0.00013013,2]
[352650806,1739217067513,-500.0,0.00013013,2]
[352650808,1739217067524,-1323.61,0.00013013,2]
[352650810,1739217067535,-11584.87,0.00013013,2]
[352650812,1739217067545,-860.92,0.00013013,2]
[352650814,1739217067558,-4800.77,0.00013013,2]
[352650816,1739217067568,-500.0,0.00013013,2]
[352650818,1739217067578,-585.45,0.00013013,2]
[352650820,1739217067588,-500.0,0.00013013,2]
[352650822,1739217067599,-916.7,0.00013013,2]
[352650825,1739217067608,-29101.39,0.00013013,2]
[352650826,1739217067618,-1273.32,0.00013013,2]
[352650828,1739217067628,-1025.97,0.00013013,2]
[352650830,1739217067639,-1916.6,0.00013013,2]
[352650833,1739217067649,-1515.05,0.00013013,2]
[352650835,1739217067659,-500.0,0.00013013,2]
[352650837,1739217067669,-500.0,0.00013013,2]
[352650839,1739217067679,-1019.81,0.00013013,2]
[352650841,1739217067688,-500.0,0.00013013,2]
[352650843,1739217067697,-501.45,0.00013013,2]
[352650845,1739217067707,-500.0,0.00013013,2]
[352650847,1739217067716,-500.0,0.00013013,2]
[352650849,1739217067726,-14265.64,0.00013013,2]
[352650851,1739217067736,-501.51,0.00013013,2]
[352650853,1739217067746,-500.0,0.00013013,2]
[352650855,1739217067756,-621.7,0.00013013,2]
[352650857,1739217067766,-3666.21,0.00013013,2]
[352650859,1739217067775,-1588.62,0.00013013,2]
[352650861,1739217067785,-778.17,0.00013013,2]
[352650863,1739217067795,-1513.57,0.00013013,2]
[352650865,1739217067805,-537.86,0.00013013,2]
[352650867,1739217067814,-3318.52,0.00013013,2]
[352650869,1739217067823,-8633.74,0.00013013,2]
[352650871,1739217067834,-1563.78,0.00013013,2]
[352650873,1739217067843,-663.02,0.00013013,2]
[352650875,1739217067852,-540.59,0.00013013,2]
[352650877,1739217067862,-1721.85,0.00013013,2]
[352650879,1739217067872,-500.0,0.00013013,2]
[352650881,1739217067882,-1093.42,0.00013013,2]
[352650883,1739217067892,-732.73,0.00013013,2]
[352650885,1739217067902,-517.15,0.00013013,2]
[352650887,1739217067912,-1107.21,0.00013013,2]
[352650889,1739217067922,-500.0,0.00013013,2]
[352650891,1739217067932,-3083.07,0.00013013,2]
[352650893,1739217067942,-1784.52277104,0.0001314,2]
[352650895,1739217067951,-151.0,0.0001315,2]
[352650897,1739217067960,-450.6,0.0001315,2]
[352650899,1739217067969,-500.0,0.0001315,2]
[352650901,1739217067978,-1795.214927,0.0001315,2]
[352650903,1739217067988,-1795.214927,0.0001315,2]
[352650905,1739217067998,-735.03,0.0001315,2]
[352650907,1739217068009,-500.0,0.0001315,2]
[352650909,1739217068018,-500.0,0.0001315,2]
[352650911,1739217068027,-308.194264,0.0001315,2]
[352650913,1739217068037,-308.194264,0.0001315,2]
[352650915,1739217068046,-500.0,0.0001315,2]
[352650917,1739217068056,-500.0,0.0001315,2]
[352650919,1739217068064,-654.8,0.0001315,2]
[352650921,1739217068074,-661.79,0.0001315,2]
[352650923,1739217068084,-500.0,0.0001315,2]
[352650925,1739217068094,-872.2,0.0001315,2]
[352650927,1739217068103,-500.0,0.0001315,2]
[352650929,1739217068113,-564.08,0.0001315,2]
[352650931,1739217068122,-500.0,0.0001315,2]
[352650933,1739217068131,-746.7,0.0001315,2]
[352650935,1739217068140,-500.0,0.0001315,2]